fUSD/lending_fUSD_20250226
["ID","MTS","AMOUNT","RATE_DAILY","PERIOD"]
[354523298,1740555051167,-500.0,0.00043835,7]
[354523299,1740555051176,-2096.99,0.00043835,120]
[354523300,1740555051186,-779.47,0.00043835,30]
[354523301,1740555051195,-3417.15,0.00043835,120]
[354523302,1740555051206,-500.0,0.00043835,120]
[354523303,1740555051216,-502.15561602,0.00043835,120]
[354523304,1740555051226,-500.0,0.00043835,120]
[354523305,1740555051236,-152.316205,0.00043835,120]
[354523306,1740555051246,-500.0,0.00043835,120]
[354523307,1740555051255,-840.53,0.00043835,120]
[354523308,1740555051264,-500.0,0.00043835,120]
[354523309,1740555051273,-1084.91,0.00043835,120]
[354523310,1740555051283,-501.4459855,0.00043835,120]
[354523311,1740555051293,-2750.27,0.00043835,120]
[354523312,1740555051302,-756.92,0.00043835,120]
[354523313,1740555051311,-2198.33,0.00043835,120]
[354523314,1740555051321,-1001.05,0.00043835,120]
[354523315,1740555051330,-500.0,0.00043835,120]
[354523316,1740555051339,-500.0,0.00043835,120]
[354523317,1740555051348,-2715.51,0.00043835,120]
[354523318,1740555051358,-500.0,0.00043835,120]
[354523319,1740555051367,-1608.21,0.00043835,120]
[354523320,1740555051376,-500.0,0.00043835,120]
[354523321,1740555051386,-924.94,0.00043835,120]
[354523322,1740555051395,-502.22886293,0.00043835,120]
[354523323,1740555051404,-500.0,0.00043835,120]
[354523324,1740555051414,-526.25759791,0.00043835,120]
[354523325,1740555051424,-1700.85,0.00043835,120]
[354523326,1740555051433,-941.35,0.00043835,120]
[354523327,1740555051442,-1785.14,0.00043835,120]
[354523328,1740555051451,-155.119196,0.00043835,120]
[354523329,1740555051461,-541.69,0.00043835,120]
[354523330,1740555051470,-500.0,0.00043835,120]
[354523331,1740555051480,-3190.56,0.00043835,120]
[354523332,1740555051490,-863.63,0.00043835,120]
[354523333,1740555051500,-1572.12,0.00043835,120]
[354523334,1740555051509,-744.8,0.00043835,120]
[354523335,1740555051519,-932.26,0.00043835,120]
[354523336,1740555051528,-191.47296332,0.00043835,120]
[354523337,1740555051537,-500.0,0.00043835,120]
[354523338,1740555051546,-502.57,0.00043835,120]
[354523339,1740555051556,-1127.07,0.00043835,120]
[354523340,1740555051565,-3362.12,0.00043835,120]
[354523341,1740555051574,-1776.38,0.00043835,120]
[354523342,1740555051583,-500.0,0.00043835,120]
[354523343,1740555051592,-672.66,0.00043835,120]
[354523344,1740555051601,-500.0,0.00043835,120]
[354523345,1740555051610,-829.53,0.00043835,120]
[354523346,1740555051620,-1909.91,0.00043835,120]
[354523347,1740555051629,-556.96,0.00043835,120]
[354523348,1740555051638,-2617.22,0.00043835,120]
[354523349,1740555051647,-500.0,0.00043835,120]
[354523350,1740555051656,-1752.29,0.00043835,120]
[354523351,1740555051665,-1423.91,0.00043835,120]
[354523352,1740555051675,-504.66,0.00043835,120]
[354523353,1740555051684,-500.0,0.00043835,120]
[354523354,1740555051694,-500.0,0.00043835,120]
[354523355,1740555051703,-992.45,0.00043835,120]
[354523356,1740555051712,-500.0,0.00043835,120]
[354523357,1740555051726,-501.91189677,0.00043835,120]
[354523358,1740555051735,-1083.97,0.00043835,120]
[354523359,1740555051744,-500.0,0.00043835,120]
[354523360,1740555051754,-873.28,0.00043835,120]
[354523361,1740555051764,-500.0,0.00043835,120]
[354523362,1740555051773,-500.0,0.00043835,30]
[354523363,1740555051782,-500.0,0.00043835,120]
[354523364,1740555051792,-2275.01,0.00043835,120]
[354523365,1740555051801,-500.0,0.00043835,120]
[354523366,1740555051811,-550.35,0.00043835,120]
[354523367,1740555051820,-1560.54,0.00043835,120]
[354523368,1740555051830,-1531.47,0.00043835,120]
[354523369,1740555051839,-557.35,0.00043835,120]
[354523370,1740555051849,-717.85,0.00043835,120]
[354523371,1740555051858,-2607.82,0.00043835,120]
[354523372,1740555051867,-681.61,0.00043835,120]
[354523373,1740555051876,-500.0,0.00043835,120]
[354523374,1740555051886,-500.0,0.00043835,120]
[354523375,1740555051895,-500.0,0.00043835,120]
[354523376,1740555051904,-1786.76,0.00043835,120]
[354523377,1740555051914,-504.7842758,0.00043835,120]
[354523378,1740555051924,-2862.86,0.00043835,120]
[354523379,1740555051933,-500.0,0.00043835,120]
[354523380,1740555051942,-500.0,0.00043835,120]
[354523381,1740555051951,-500.0,0.00043835,120]
[354523382,1740555051960,-1415.59,0.00043835,120]
[354523383,1740555051970,-502.87682866,0.00043835,120]
[354523384,1740555051981,-2725.56,0.00043835,120]
[354523385,1740555051991,-500.0,0.00043835,120]
[354523386,1740555052000,-1000.0,0.00043835,120]
[354523387,1740555052010,-503.5136093,0.00043835,120]
[354523388,1740555052019,-1000.0,0.00043835,120]
[354523389,1740555052029,-1000.0,0.00043835,120]
[354523390,1740555052039,-1451.27,0.00043835,120]
[354523391,1740555052049,-1000.0,0.00043835,120]
[354523392,1740555052058,-1000.0,0.00043835,120]
[354523393,1740555052068,-1000.0,0.00043835,120]
[354523394,1740555052077,-1000.0,0.00043835,120]
[354523395,1740555052087,-719.65,0.00043835,120]
[354523396,1740555052097,-500.0,0.00043835,120]
[354523397,1740555052109,-500.0,0.00043835,120]
[354523398,1740555052119,-500.0,0.00043835,120]
[354523399,1740555052129,-3150.63,0.00043835,120]
[354523400,1740555052138,-501.04639968,0.00043835,120]
[354523401,1740555052149,-500.0,0.00043835,120]
[354523402,1740555052158,-440.19099306,0.00043835,120]
[354523403,1740555052168,-500.0,0.00043835,120]
[354523404,1740555052177,-2962.7,0.00043835,120]
[354523405,1740555052188,-1801.83,0.00043835,120]
[354523406,1740555052199,-500.0,0.00043835,120]
[354523407,1740555052208,-500.0,0.00043835,120]
[354523408,1740555052218,-500.0,0.00043835,120]
[354523409,1740555052229,-500.0,0.00043835,120]
[354523410,1740555052240,-1702.58,0.00043835,120]
[354523411,1740555052249,-500.0,0.00043835,120]
[354523412,1740555052259,-500.0,0.00043835,120]
[354523413,1740555052268,-2032.27,0.00043835,120]
[354523414,1740555052277,-500.0,0.00043835,120]
[354523415,1740555052287,-1578.46,0.00043835,120]
[354523416,1740555052296,-502.03710895,0.00043835,120]
[354523417,1740555052305,-1099.5,0.00043835,120]
[354523418,1740555052315,-500.0,0.00043835,120]
[354523419,1740555052325,-2067.77,0.00043835,120]
[354523420,1740555052334,-500.0,0.00043835,120]
[354523421,1740555052344,-500.0,0.00043835,120]
[354523422,1740555052353,-1118.71,0.00043835,120]
[354523423,1740555052363,-500.0,0.00043835,120]
[354523424,1740555052372,-500.0,0.00043835,120]
[354523425,1740555052382,-1712.49,0.00043835,120]
[354523426,1740555052393,-500.0,0.00043835,120]
[354523427,1740555052402,-181.78210354,0.00043835,120]
[354523428,1740555052413,-500.0,0.00043835,120]
[354523429,1740555052423,-2065.45,0.00043835,120]
[354523430,1740555052432,-500.0,0.00043835,120]
[354523431,1740555052443,-500.0,0.00043835,120]
[354523432,1740555052452,-500.0,0.00043835,120]
[354523433,1740555052462,-611.40504898,0.00043835,120]
[354523434,1740555052471,-500.0,0.00043835,120]
[354523435,1740555052482,-501.55428666,0.00043835,30]
[354523436,1740555052492,-500.0,0.00043835,120]
[354523437,1740555052502,-500.0,0.00043835,120]
[354523438,1740555052512,-500.0,0.00043835,120]
[354523439,1740555052521,-500.0,0.00043835,120]
[354523440,1740555052530,-500.0,0.00043835,120]
[354523441,1740555052539,-500.0,0.00043835,120]
[354523442,1740555052549,-1479.69,0.00043835,120]
[354523443,1740555052568,-500.0,0.00043835,120]
[354523444,1740555052587,-500.0,0.00043835,120]
[354523445,1740555052603,-500.0,0.00043835,120]
[354523446,1740555052613,-2640.3,0.00043835,120]
[354523447,1740555052623,-500.0,0.00043835,120]
[354523448,1740555052633,-1680.22,0.00043835,120]
[354523449,1740555052643,-1329.82,0.00043835,120]
[354523450,1740555052654,-2292.91,0.00043835,120]
[354523451,1740555052664,-1791.63,0.00043835,120]
[354523452,1740555052674,-500.0,0.00043835,120]
[354523453,1740555052685,-500.0,0.00043835,120]
[354523454,1740555052694,-1361.26,0.00043835,120]
[354523455,1740555052704,-500.0,0.00043835,120]
[354523456,1740555052714,-1969.01,0.00043835,120]
[354523457,1740555052723,-500.0,0.00043835,120]
[354523458,1740555052735,-500.0,0.00043835,120]
[354523459,1740555052744,-1531.04,0.00043835,120]
[354523460,1740555052754,-1826.85,0.00043835,120]
[354523461,1740555052763,-500.0,0.00043835,120]
[354523462,1740555052773,-1014.51,0.00043835,120]
[354523463,1740555052782,-2107.35,0.00043835,120]
[354523464,1740555052791,-500.0,0.00043835,120]
[354523465,1740555052801,-1317.14,0.00043835,120]
[354523466,1740555052811,-501.0744693,0.00043835,120]
[354523467,1740555052820,-1014.59,0.00043835,120]
[354523468,1740555052830,-500.0,0.00043835,120]
[354523469,1740555052839,-3326.42,0.00043835,120]
[354523470,1740555052849,-500.0,0.00043835,120]
[354523471,1740555052858,-500.0,0.00043835,120]
[354523472,1740555053051,-500.0,0.00043835,120]
[354523473,1740555053072,-999.6,0.00043835,120]
[354523474,1740555053081,-500.0,0.00043835,120]
[354523475,1740555053091,-500.0,0.00043835,120]
[354523476,1740555053101,-500.0,0.00043835,120]
[354523477,1740555053111,-358.86198251,0.00043835,120]
[354523478,1740555053120,-501.14196998,0.00043835,120]
[354523479,1740555053129,-1217.95,0.00043835,120]
[354523480,1740555053140,-500.0,0.00043835,120]
[354523481,1740555053149,-1826.51,0.00043835,120]
[354523482,1740555053160,-1613.97,0.00043835,120]
[354523483,1740555053169,-1521.08,0.00043835,120]
[354523484,1740555053181,-500.0,0.00043835,120]
[354523485,1740555053191,-508.37112856,0.00043835,120]
[354523486,1740555053201,-941.9,0.00043835,120]
[354523487,1740555053211,-1488.51,0.00043835,120]
[354523488,1740555053220,-1549.21,0.00043835,120]
[354523489,1740555053232,-1428.1,0.00043835,60]
[354523490,1740555053241,-500.0,0.00043835,120]
[354523491,1740555053251,-2495.98,0.00043835,120]
[354523492,1740555053260,-560.83725875,0.00043835,120]
[354523493,1740555053269,-500.0,0.00043835,120]
[354523494,1740555053278,-500.0,0.00043835,120]
[354523495,1740555053287,-739.33,0.00043835,120]
[354523496,1740555053297,-2984.68,0.00043835,120]
[354523497,1740555053306,-500.0,0.00043835,120]
[354523498,1740555053315,-563.93,0.00043835,120]
[354523499,1740555053325,-2626.89,0.00043835,120]
[354523500,1740555053335,-1113.33,0.00043835,120]
[354523501,1740555053344,-1156.58,0.00043835,120]
[354523502,1740555053353,-500.0,0.00043835,120]
[354523503,1740555053362,-5560.97,0.00043835,120]
[354523504,1740555053371,-500.0,0.00043835,120]
[354523505,1740555053381,-505.95058796,0.00043835,120]
[354523506,1740555053390,-500.0,0.00043835,120]
[354523507,1740555053399,-1991.44,0.00043835,120]
[354523508,1740555053409,-500.0,0.00043835,120]
[354523509,1740555053419,-616.34,0.00043835,120]
[354523510,1740555053428,-645.37523808,0.00043835,120]
[354523511,1740555053438,-500.0,0.00043835,120]
[354523512,1740555053447,-1193.41,0.00043835,120]
[354523513,1740555053457,-500.0,0.00043835,120]
[354523514,1740555053466,-852.89,0.00043835,120]
[354523515,1740555053475,-2901.3,0.00043835,120]
[354523516,1740555053484,-500.0,0.00043835,120]
[354523517,1740555053494,-500.0,0.00043835,120]
[354523518,1740555053504,-770.17,0.00043835,120]
[354523519,1740555053515,-500.0,0.00043835,120]
[354523520,1740555053526,-647.3,0.00043835,120]
[354523521,1740555053537,-2000.0,0.00043835,120]
[354523522,1740555053547,-1276.72,0.00043835,120]
[354523523,1740555053556,-1844.23,0.00043835,120]
[354523524,1740555053566,-227.31175142,0.00043835,120]
[354523525,1740555053576,-1743.23,0.00043835,120]
[354523526,1740555053586,-1729.76,0.00043835,120]
[354523527,1740555053596,-500.0,0.00043835,120]
[354523528,1740555053607,-2213.53,0.00043835,120]
[354523529,1740555053616,-1882.87,0.00043835,120]
[354523530,1740555053626,-500.0,0.00043835,120]
[354523531,1740555053636,-508.50401373,0.00043835,120]
[354523532,1740555053646,-3754.36,0.00043835,120]
[354523533,1740555053656,-500.0,0.00043835,120]
[354523534,1740555053665,-500.0,0.00043835,120]
[354523535,1740555053674,-1938.29,0.00043835,120]
[354523536,1740555053683,-1056.13,0.00043835,120]
[354523537,1740555053692,-3973.2,0.00043835,120]
[354523538,1740555053701,-2064.76,0.00043835,120]
[354523539,1740555053709,-774.99,0.00043835,120]
[354523540,1740555053718,-500.0,0.00043835,120]
[354523541,1740555053727,-826.17,0.00043835,120]
[354523542,1740555053737,-520.93,0.00043835,120]
[354523543,1740555053746,-527.06835557,0.00043835,120]
[354523544,1740555053755,-500.0,0.00043835,120]
[354523545,1740555053764,-500.0,0.00043835,120]
[354523546,1740555053773,-2263.68,0.00043835,120]
[354523547,1740555053782,-2759.83,0.00043835,120]
[354523548,1740555053791,-500.0,0.00043835,120]
[354523549,1740555053801,-2498.86,0.00043835,120]
[354523550,1740555053810,-505.55373877,0.00043835,120]
[354523551,1740555053819,-1107.73,0.00043835,120]
[354523552,1740555053828,-500.0,0.00043835,120]
[354523553,1740555053838,-2287.75,0.00043835,120]
[354523554,1740555053847,-500.0,0.00043835,120]
[354523555,1740555053855,-500.0,0.00043835,120]
[354523556,1740555053865,-1959.59,0.00043835,120]
[354523557,1740555053874,-1844.62,0.00043835,7]
[354523558,1740555053883,-692.71,0.00043835,120]
[354523559,1740555053892,-501.7810088,0.00043835,120]
[354523560,1740555053902,-2030.18,0.00043835,120]
[354523561,1740555053911,-3141.56,0.00043835,120]
[354523562,1740555053921,-1458.85,0.00043835,120]
[354523563,1740555053930,-1108.65,0.00043835,120]
[354523564,1740555053939,-4910.38,0.00043835,120]
[354523565,1740555053949,-1929.25,0.00043835,120]
[354523566,1740555053958,-1456.73,0.00043835,120]
[354523567,1740555053968,-2501.58,0.00043835,120]
[354523568,1740555053977,-1281.78,0.00043835,120]
[354523569,1740555053987,-500.0,0.00043835,120]
[354523570,1740555053996,-1987.87,0.00043835,120]
[354523571,1740555054005,-500.0,0.00043835,120]
[354523572,1740555054014,-2821.48,0.00043835,120]
[354523573,1740555054024,-500.0,0.00043835,120]
[354523574,1740555054033,-2380.64,0.00043835,120]
[354523575,1740555054043,-4887.76,0.00043835,120]
[354523576,1740555054058,-500.0,0.00043835,120]
[354523577,1740555054077,-500.0,0.00043835,120]
[354523578,1740555054096,-151.701563,0.00043835,14]
[354523579,1740555054114,-885.66,0.00043835,120]
[354523580,1740555054126,-151.0,0.00043835,14]
[354523581,1740555054137,-151.0,0.00043835,14]
[354523582,1740555054147,-500.0,0.00043835,120]
[354523583,1740555054156,-1610.19,0.00043835,120]
[354523584,1740555054165,-611.01,0.00043835,120]
[354523585,1740555054175,-675.18,0.00043835,120]
[354523586,1740555054184,-1115.41,0.00043835,120]
[354523587,1740555054193,-1530.64,0.00043835,120]
[354523588,1740555054203,-736.72,0.00043835,120]
[354523589,1740555054212,-1096.9,0.00043835,120]
[354523590,1740555054223,-1930.69,0.00043835,120]
[354523591,1740555054235,-6300.9,0.00043835,120]
[354523592,1740555054246,-5026.56,0.00043835,120]
[354523593,1740555054256,-6329.73,0.00043835,120]
[354523594,1740555054265,-974.24,0.00043835,120]
[354523595,1740555054275,-1734.63,0.00043835,120]
[354523596,1740555054284,-500.0,0.00043835,120]
[354523597,1740555054293,-1357.33,0.00043835,120]
[354523598,1740555054302,-500.0,0.00043835,120]
[354523599,1740555054312,-552.42,0.00043835,120]
[354523600,1740555054321,-565.84,0.00043835,120]
[354523601,1740555054331,-500.0,0.00043835,120]
[354523602,1740555054340,-789.91133277,0.00043835,120]
[354523603,1740555054365,-809.51866723,0.00043835,120]
[354523604,1740555054375,-1422.63133277,0.00043835,120]
[354523605,1740555054387,-2269.21866723,0.00043835,120]
[354523606,1740555054397,-1067.21,0.00043835,120]
[354523607,1740555054407,-11026.43854365,0.00043835,120]
[354523768,1740556232174,-150.37,0.00026849,2]
[354523769,1740556232184,-500.0,0.00033,15]
[354523770,1740556232193,-2999.0,0.000386,3]
[354523771,1740556232203,-184.86103715,0.000399,2]
[354523772,1740556232212,-5260.6532848,0.000399,2]
[354523773,1740556232222,-500.0,0.0004,15]
[354523774,1740556232231,-762.34,0.0004,120]
[354523775,1740556232241,-915.04,0.00040571,2]
[354523776,1740556232250,-762.34,0.00041,120]
[354523777,1740556232259,-3278.60266938,0.00042422,2]
[354523778,1740556232269,-177.28,0.00042436,2]
[354523779,1740556232279,-1500.0,0.00042476,120]
[354523780,1740556232288,-500.0,0.00042548,2]
[354523781,1740556232298,-391.05,0.00042671,120]
[354523782,1740556232307,-250.0,0.00042708,2]
[354523783,1740556232316,-200.0,0.00042821,2]
[354523784,1740556232326,-915.04,0.00042835,2]
[354523785,1740556232336,-241.61,0.00042839,2]
[354523786,1740556232345,-1000.0,0.00042851,2]
[354523787,1740556232354,-237.48259953,0.000429,9]
[354523788,1740556232364,-3857.81,0.00042915,2]
[354523789,1740556232373,-1089.7,0.00042941,30]
[354523790,1740556232382,-886.94,0.00042941,30]
[354523791,1740556232391,-2865.53497794,0.00043,120]
[354523792,1740556232437,-92134.46502106,0.00043,120]
[354523793,1740556232446,-762.34,0.00043,120]
[354523794,1740556232455,-762.41370747,0.00043,120]
[354523795,1740556232464,-2000.0,0.00043064,120]
[354523796,1740556232479,-438.25,0.00043288,30]
[354523797,1740556232488,-438.71,0.00043288,30]
[354523798,1740556232497,-351.81159408,0.00043339,2]
[354523799,1740556232506,-600.0,0.000435,15]
[354523800,1740556232517,-1200.0,0.000436,15]
[354523801,1740556232526,-1900.0,0.000437,15]
[354523802,1740556232535,-1649.88748319,0.00043725,15]
[354523803,1740556232545,-1624.19604612,0.00043725,15]
[354523804,1740556232555,-5000.0,0.00043735,3]
[354523805,1740556232564,-200.54189884,0.00043735,18]
[354523806,1740556232573,-328.07825886,0.00043735,2]
[354523807,1740556232582,-358.4483829,0.00043735,12]
[354523808,1740556232591,-163.23334803,0.00043735,28]
[354523809,1740556232600,-1687.78120698,0.00043735,20]
[354523810,1740556232609,-167.27035013,0.0004379,18]
[354523811,1740556232618,-344.07,0.000438,30]
[354523812,1740556232627,-344.07,0.000438,30]
[354523813,1740556232637,-344.07,0.000438,30]
[354523814,1740556232646,-344.07,0.000438,30]
[354523815,1740556232655,-344.07,0.000438,30]
[354523816,1740556232664,-344.07,0.000438,30]
[354523817,1740556232673,-175.26,0.000438,30]
[354523818,1740556232682,-278.16,0.000438,30]
[354523819,1740556232691,-2500.0,0.000438,15]
[354523820,1740556232701,-13441.9729321,0.00043815,4]
[354523821,1740556232710,-1590.29,0.00043817,68]
[354523822,1740556232720,-1649.88748312,0.00043817,15]
[354523823,1740556232729,-1624.19604606,0.00043817,15]
[354523825,1740556232739,-1120.16441101,0.00043824,4]
[354523827,1740556232748,-354.50250185,0.00043824,120]
[354523829,1740556232757,-8961.31528808,0.00043825,4]
[354523831,1740556232766,-203.82369593,0.00043825,7]
[354523833,1740556232776,-500.0,0.00043834,31]
[354523835,1740556232786,-224.10142726,0.00043834,31]
[354523837,1740556232795,-500.0,0.00043834,31]
[354523839,1740556232805,-500.0,0.00043834,31]
[354523841,1740556232815,-500.0,0.00043834,31]
[354523843,1740556232824,-500.0,0.00043834,31]
[354523845,1740556232834,-500.0,0.00043834,31]
[354523847,1740556232844,-500.0,0.00043834,31]
[354523849,1740556232853,-500.0,0.00043834,31]
[354523851,1740556232862,-550.0,0.00043834,31]
[354523853,1740556232871,-500.0,0.00043834,31]
[354523855,1740556232880,-265.56535139,0.00043834,31]
[354523857,1740556232889,-150.0,0.00043834,30]
[354523859,1740556232897,-163.43783851,0.00043835,5]
[354523861,1740556232906,-23345.33046864,0.00043835,7]
[354523863,1740556232919,-256.3068874,0.00043835,7]
[354523865,1740556232932,-30852.03552375,0.00043835,7]
[354523868,1740556232947,-3917.8,0.00043835,7]
[354523870,1740556232958,-785.69753671,0.00043835,7]
[354523884,1740556233075,-257.196,0.00043835,7]
[354523886,1740556233087,-510602.40230035,0.00043835,7]
[354523888,1740556233096,-530.35779963,0.00043835,120]
[354523890,1740556233105,-209.90951817,0.00043835,120]
[354523892,1740556233114,-509.36820423,0.00043835,120]
[354523894,1740556233124,-206.30256592,0.00043835,5]
[354523896,1740556233133,-500.0,0.00043835,120]
[354523898,1740556233142,-500.0,0.00043835,120]
[354523900,1740556233151,-502.0862859,0.00043835,120]
[354523901,1740556233160,-500.0,0.00043835,120]
[354523904,1740556233169,-500.0,0.00043835,120]
[354523906,1740556233179,-500.0,0.00043835,120]
[354523908,1740556233188,-294.38611768,0.00043835,120]
[354523910,1740556233198,-500.0,0.00043835,120]
[354523911,1740556233207,-502.30257327,0.00043835,120]
[354523914,1740556233217,-500.0,0.00043835,120]
[354523915,1740556233227,-500.0,0.00043835,120]
[354523917,1740556233237,-529.21860085,0.00043835,120]
[354523919,1740556233246,-500.0,0.00043835,120]
[354523922,1740556233257,-1673.15,0.00043835,120]
[354523924,1740556233267,-500.0,0.00043835,120]
[354523925,1740556233276,-512.83,0.00043835,120]
[354523927,1740556233286,-926.91,0.00043835,120]
[354523929,1740556233296,-1021.1,0.00043835,120]
[354523932,1740556233306,-500.0,0.00043835,120]
[354523933,1740556233315,-1128.75,0.00043835,120]
[354523935,1740556233325,-1020.86,0.00043835,120]
[354523937,1740556233334,-862.64,0.00043835,120]
[354523940,1740556233344,-500.0,0.00043835,120]
[354523941,1740556233353,-1075.7,0.00043835,120]
[354523943,1740556233363,-892.39,0.00043835,120]
[354523945,1740556233372,-971.13,0.00043835,120]
[354523946,1740556233382,-199.4063651,0.00043835,120]
[354523947,1740556233392,-500.0,0.00043835,120]
[354523948,1740556233401,-2148.59,0.00043835,20]
[354523949,1740556233410,-500.0,0.00043835,120]
[354523950,1740556233420,-500.0,0.00043835,120]
[354523951,1740556233430,-778.43,0.00043835,120]
[354523952,1740556233440,-1043.76,0.00043835,120]
[354523953,1740556233450,-552.79,0.00043835,40]
[354523954,1740556233459,-1007.9,0.00043835,120]
[354523955,1740556233469,-502.52677882,0.00043835,120]
[354523956,1740556233482,-500.0,0.00043835,120]
[354523957,1740556233491,-651.22,0.00043835,120]
[354523958,1740556233501,-753.66,0.00043835,120]
[354523959,1740556233510,-500.0,0.00043835,120]
[354523960,1740556233519,-500.0,0.00043835,120]
[354523962,1740556233530,-710.6,0.00043835,120]
[354523964,1740556233539,-552.4370283,0.00043835,120]
[354523966,1740556233549,-553.25,0.00043835,120]
[354523968,1740556233560,-500.0,0.00043835,120]
[354523970,1740556233569,-500.0,0.00043835,120]
[354523972,1740556233579,-501.78603231,0.00043835,120]
[354523974,1740556233588,-200.96007308,0.00043835,120]
[354523976,1740556233598,-929.7,0.00043835,120]
[354523978,1740556233607,-1047.01,0.00043835,120]
[354523980,1740556233616,-1453.79,0.00043835,120]
[354523982,1740556233626,-500.0,0.00043835,120]
[354523984,1740556233635,-500.0,0.00043835,120]
[354523986,1740556233644,-1142.91,0.00043835,120]
[354523988,1740556233653,-2000.0,0.00043835,120]
[354523990,1740556233662,-500.0,0.00043835,120]
[354523992,1740556233672,-500.0,0.00043835,120]
[354523994,1740556233681,-500.0,0.00043835,120]
[354523996,1740556233690,-649.17,0.00043835,120]
[354523998,1740556233699,-500.0,0.00043835,120]
[354524000,1740556233708,-500.0,0.00043835,120]
[354524002,1740556233718,-922.09,0.00043835,120]
[354524004,1740556233727,-500.0,0.00043835,120]
[354524006,1740556233736,-500.0,0.00043835,120]
[354524008,1740556233745,-769.13,0.00043835,120]
[354524010,1740556233755,-806.38,0.00043835,120]
[354524012,1740556233764,-500.0,0.00043835,120]
[354524014,1740556233773,-500.0,0.00043835,120]
[354524016,1740556233783,-501.38947629,0.00043835,120]
[354524018,1740556233792,-1678.05,0.00043835,120]
[354524019,1740556233801,-789.45,0.00043835,120]
[354524022,1740556233811,-500.0,0.00043835,120]
[354524024,1740556233820,-500.0,0.00043835,120]
[354524025,1740556233829,-500.0,0.00043835,120]
[354524027,1740556233839,-500.0,0.00043835,120]
[354524029,1740556233848,-844.55,0.00043835,120]
[354524031,1740556233857,-2170.07,0.00043835,120]
[354524033,1740556233866,-500.0,0.00043835,120]
[354524035,1740556233876,-500.0,0.00043835,120]
[354524037,1740556233885,-799.1,0.00043835,120]
[354524039,1740556233894,-725.38,0.00043835,120]
[354524041,1740556233903,-500.0,0.00043835,120]
[354524043,1740556233912,-500.0,0.00043835,120]
[354524045,1740556233921,-500.0,0.00043835,120]
[354524047,1740556233931,-763.19,0.00043835,120]
[354524049,1740556233939,-902.13,0.00043835,120]
[354524051,1740556233948,-1710.76,0.00043835,120]
[354524053,1740556233958,-565.49,0.00043835,120]
[354524055,1740556233967,-827.64,0.00043835,120]
[354524057,1740556233976,-893.42,0.00043835,120]
[354524059,1740556233986,-1702.36,0.00043835,120]
[354524061,1740556233996,-339.64219944,0.00043835,120]
[354524063,1740556234005,-500.0,0.00043835,120]
[354524065,1740556234015,-506.49,0.00043835,120]
[354524067,1740556234024,-502.24060472,0.00043835,120]
[354524087,1740556234034,-500.0,0.00043835,120]
[354524094,1740556234261,-1679.27,0.00043835,120]
[354524096,1740556234272,-500.0,0.00043835,120]
[354524098,1740556234283,-500.0,0.00043835,120]
[354524100,1740556234292,-836.9,0.00043835,120]
[354524102,1740556234303,-295.04243814,0.00043835,120]
[354524105,1740556234320,-204.95756186,0.00043835,120]
[354524107,1740556234330,-500.0,0.00043835,120]
[354524108,1740556234339,-841.27,0.00043835,120]
[354524111,1740556234349,-500.0,0.00043835,120]